[Event "*** SCC Grand Prix: Titled Tuesday Blitz"]
[Site "Chess.com"]
[Date "2020.07.07"]
[Round "3"]
[White "Tekushka"]
[Black "vinniethepooh"]
[Result "0-1"]
[WhiteElo "2359"]
[BlackElo "2548"]
[TimeControl "180+1"]
[EndTime "10:29:27 PDT"]
[Termination "vinniethepooh won by resignation"]

1. d4 {[%clk 0:03:00.9]} 1... Nf6 {[%clk 0:02:59.9]} 2. c4 {[%clk 0:03:00.5]}
2... e6 {[%clk 0:03:00.1]} 3. Nf3 {[%clk 0:03:00.1]} 3... d5 {[%clk 0:02:59.9]}
4. Nc3 {[%clk 0:02:59.3]} 4... c6 {[%clk 0:02:59.5]} 5. e3 {[%clk 0:02:56.2]}
5... Nbd7 {[%clk 0:02:59.5]} 6. Bd3 {[%clk 0:02:55.6]} 6... dxc4 {[%clk
0:03:00]} 7. Bxc4 {[%clk 0:02:55.8]} 7... b5 {[%clk 0:03:00.5]} 8. Bd3 {[%clk
0:02:55.7]} 8... a6 {[%clk 0:03:01.4]} 9. a4 {[%clk 0:02:52.6]} 9... Bb7 {[%clk
0:02:59]} 10. Qe2 {[%clk 0:02:50.7]} 10... b4 {[%clk 0:02:59]} 11. Ne4 {[%clk
0:02:50.6]} 11... c5 {[%clk 0:02:59.4]} 12. Nxf6+ {[%clk 0:02:47.2]} 12... Nxf6
{[%clk 0:03:00.3]} 13. dxc5 {[%clk 0:02:45.7]} 13... Bxc5 {[%clk 0:03:01.2]} 14.
e4 {[%clk 0:02:46]} 14... h6 {[%clk 0:02:50.7]} 15. O-O {[%clk 0:02:39.5]} 15...
O-O {[%clk 0:02:45.1]} 16. e5 {[%clk 0:02:25]} 16... Nd7 {[%clk 0:02:42.8]} 17.
Be4 {[%clk 0:02:24]} 17... Qb6 {[%clk 0:02:36]} 18. a5 {[%clk 0:02:14.3]} 18...
Qa7 {[%clk 0:02:32.8]} 19. Bf4 {[%clk 0:02:09.6]} 19... Rfd8 {[%clk 0:02:28]}
20. Rac1 {[%clk 0:01:48.8]} 20... Rac8 {[%clk 0:02:23.9]} 21. Nd2 {[%clk
0:01:33.7]} 21... Be7 {[%clk 0:02:17.4]} 22. Qg4 {[%clk 0:01:13.4]} 22... Qd4
{[%clk 0:01:43.1]} 23. Bxb7 {[%clk 0:01:05.2]} 23... Rxc1 {[%clk 0:01:36.7]} 24.
Rxc1 {[%clk 0:01:04.7]} 24... Nxe5 {[%clk 0:01:25.3]} 25. Nb3 {[%clk 0:00:19.3]}
25... Nxg4 {[%clk 0:01:10.2]} 26. Nxd4 {[%clk 0:00:18.7]} 26... Rxd4 {[%clk
0:01:11.1]} 27. Bg3 {[%clk 0:00:16.5]} 27... Bg5 {[%clk 0:01:07]} 28. Re1 {[%clk
0:00:15.1]} 28... Bd8 {[%clk 0:00:45.2]} 29. h3 {[%clk 0:00:14.6]} 29... Nf6
{[%clk 0:00:43.9]} 30. Bxa6 {[%clk 0:00:13.6]} 30... Bxa5 {[%clk 0:00:43.9]} 31.
b3 {[%clk 0:00:10.7]} 31... Bb6 {[%clk 0:00:42.2]} 32. Bc4 {[%clk 0:00:09.5]}
32... Ne4 {[%clk 0:00:35.1]} 33. Bf4 {[%clk 0:00:06.3]} 33... Rxc4 {[%clk
0:00:17.3]} 34. bxc4 {[%clk 0:00:04.1]} 34... Bxf2+ {[%clk 0:00:17.8]} 35. Kf1
{[%clk 0:00:03.7]} 35... Bxe1 {[%clk 0:00:18.7]} 36. Kxe1 {[%clk 0:00:03.9]}
36... b3 {[%clk 0:00:18.9]} 37. Be5 {[%clk 0:00:03.4]} 37... f6 {[%clk
0:00:19.2]} 38. Bb2 {[%clk 0:00:02.4]} 38... Nc5 {[%clk 0:00:18.9]} 39. Ke2
{[%clk 0:00:02.5]} 39... Na4 {[%clk 0:00:18.4]} 40. Ba3 {[%clk 0:00:02.2]} 40...
b2 {[%clk 0:00:18.4]} 41. Bxb2 {[%clk 0:00:02.1]} 41... Nxb2 {[%clk 0:00:19.3]}
42. c5 {[%clk 0:00:02.6]} 42... Kf7 {[%clk 0:00:20.2]} 43. c6 {[%clk 0:00:02.8]}
43... Ke7 {[%clk 0:00:20.6]} 44. c7 {[%clk 0:00:03.2]} 44... Kd7 {[%clk
0:00:21.5]} 0-1

[Event "*** SCC Grand Prix: Titled Tuesday Blitz"]
[Site "Chess.com"]
[Date "2020.07.07"]
[Round "3"]
[White "731291"]
[Black "Sanan_Sjugirov"]
[Result "0-1"]
[WhiteElo "2618"]
[BlackElo "2818"]
[TimeControl "180+1"]
[EndTime "10:29:28 PDT"]
[Termination "Sanan_Sjugirov won by resignation"]

1. d4 {[%clk 0:03:00.9]} 1... Nf6 {[%clk 0:02:59.4]} 2. Nf3 {[%clk 0:02:57.1]}
2... e6 {[%clk 0:02:59.2]} 3. c4 {[%clk 0:02:56.8]} 3... b6 {[%clk 0:02:58]} 4.
g3 {[%clk 0:02:56.8]} 4... Ba6 {[%clk 0:02:57.8]} 5. Qc2 {[%clk 0:02:56.7]} 5...
Bb7 {[%clk 0:02:46.9]} 6. Bg2 {[%clk 0:02:56.4]} 6... c5 {[%clk 0:02:47.5]} 7.
d5 {[%clk 0:02:39.5]} 7... exd5 {[%clk 0:02:47.1]} 8. cxd5 {[%clk 0:02:35.9]}
8... Nxd5 {[%clk 0:02:45.9]} 9. O-O {[%clk 0:02:32.6]} 9... Nc6 {[%clk 0:02:42]}
10. Rd1 {[%clk 0:02:29.4]} 10... Be7 {[%clk 0:02:41.5]} 11. Qa4 {[%clk
0:02:26.7]} 11... Nf6 {[%clk 0:02:28.1]} 12. Bg5 {[%clk 0:01:57.6]} 12... O-O
{[%clk 0:02:22.6]} 13. Nc3 {[%clk 0:01:55.9]} 13... h6 {[%clk 0:02:20.1]} 14.
Bxf6 {[%clk 0:01:30.2]} 14... Bxf6 {[%clk 0:02:21]} 15. Rd2 {[%clk 0:01:30.1]}
15... Bxc3 {[%clk 0:02:06.7]} 16. bxc3 {[%clk 0:01:29.7]} 16... Qe7 {[%clk
0:02:07.1]} 17. Rad1 {[%clk 0:01:26.7]} 17... Rad8 {[%clk 0:02:07.3]} 18. Nh4
{[%clk 0:01:22.5]} 18... g6 {[%clk 0:01:39.9]} 19. Rd6 {[%clk 0:01:04]} 19...
Kg7 {[%clk 0:01:29.9]} 20. Qg4 {[%clk 0:00:59.2]} 20... Qg5 {[%clk 0:01:27.8]}
21. Qxg5 {[%clk 0:00:36.4]} 21... hxg5 {[%clk 0:01:28.7]} 22. Nf3 {[%clk
0:00:37.3]} 22... f6 {[%clk 0:00:59.1]} 23. Rxd7+ {[%clk 0:00:34.1]} 23... Rxd7
{[%clk 0:01:00]} 24. Rxd7+ {[%clk 0:00:33.7]} 24... Rf7 {[%clk 0:01:00.7]} 25.
Rd6 {[%clk 0:00:30.2]} 25... Na5 {[%clk 0:00:55.7]} 26. h4 {[%clk 0:00:20.6]}
26... Nc4 {[%clk 0:00:51.8]} 27. Re6 {[%clk 0:00:17.7]} 27... gxh4 {[%clk
0:00:24.4]} 28. Nxh4 {[%clk 0:00:15.8]} 28... Bxg2 {[%clk 0:00:24.4]} 29. Nxg2
{[%clk 0:00:14.9]} 29... Rd7 {[%clk 0:00:23.4]} 30. Nf4 {[%clk 0:00:13]} 30...
Kf7 {[%clk 0:00:22.5]} 31. Rc6 {[%clk 0:00:11.5]} 31... g5 {[%clk 0:00:09.6]}
32. Nh5 {[%clk 0:00:11]} 32... Nd6 {[%clk 0:00:09.9]} 33. g4 {[%clk 0:00:09]}
33... Ke6 {[%clk 0:00:08.7]} 34. e4 {[%clk 0:00:08.6]} 34... Rf7 {[%clk
0:00:07.5]} 35. e5 {[%clk 0:00:04.6]} 35... fxe5 {[%clk 0:00:07.4]} 36. Ng3
{[%clk 0:00:04.3]} 36... Kd7 {[%clk 0:00:07.5]} 37. Rxd6+ {[%clk 0:00:03.5]}
37... Kxd6 {[%clk 0:00:08.4]} 38. Ne4+ {[%clk 0:00:04.4]} 38... Kd5 {[%clk
0:00:08.1]} 39. Nxg5 {[%clk 0:00:05.3]} 39... Rg7 {[%clk 0:00:08.4]} 40. Nf3
{[%clk 0:00:05.1]} 40... Rxg4+ {[%clk 0:00:08.5]} 41. Kf1 {[%clk 0:00:06]} 41...
Ra4 {[%clk 0:00:09.2]} 42. Nd2 {[%clk 0:00:06.9]} 42... Rxa2 {[%clk 0:00:09.4]}
43. Ke2 {[%clk 0:00:07.8]} 0-1

[Event "*** SCC Grand Prix: Titled Tuesday Blitz"]
[Site "Chess.com"]
[Date "2020.07.07"]
[Round "3"]
[White "Escanor89"]
[Black "ErikRonka"]
[Result "0-1"]
[WhiteElo "2541"]
[BlackElo "2382"]
[TimeControl "180+1"]
[EndTime "10:29:29 PDT"]
[Termination "ErikRonka won by checkmate"]

1. c4 {[%clk 0:03:00.9]} 1... c6 {[%clk 0:02:59.5]} 2. e4 {[%clk 0:02:59.9]}
2... d5 {[%clk 0:02:59.7]} 3. exd5 {[%clk 0:03:00.5]} 3... Nf6 {[%clk
0:02:56.9]} 4. d4 {[%clk 0:03:00.1]} 4... cxd5 {[%clk 0:02:56.8]} 5. Nc3 {[%clk
0:03:00.1]} 5... g6 {[%clk 0:02:56.8]} 6. cxd5 {[%clk 0:02:57.1]} 6... Nxd5
{[%clk 0:02:56.2]} 7. Bc4 {[%clk 0:02:54.1]} 7... Nb6 {[%clk 0:02:50.1]} 8. Bb3
{[%clk 0:02:46.7]} 8... Bg7 {[%clk 0:02:48.1]} 9. Be3 {[%clk 0:02:46.1]} 9...
O-O {[%clk 0:02:46.7]} 10. h3 {[%clk 0:02:42.1]} 10... Nc6 {[%clk 0:02:45.9]}
11. Nf3 {[%clk 0:02:42.2]} 11... Na5 {[%clk 0:02:44.6]} 12. O-O {[%clk
0:02:35.9]} 12... Nxb3 {[%clk 0:02:42.9]} 13. Qxb3 {[%clk 0:02:35.7]} 13... Be6
{[%clk 0:02:41.7]} 14. Qd1 {[%clk 0:02:27.5]} 14... Nd5 {[%clk 0:02:36.5]} 15.
Ne4 {[%clk 0:02:22.4]} 15... Nxe3 {[%clk 0:02:32.6]} 16. fxe3 {[%clk 0:02:21.7]}
16... Bd5 {[%clk 0:02:25.9]} 17. Nc3 {[%clk 0:02:20.3]} 17... Rc8 {[%clk
0:02:19.6]} 18. Rc1 {[%clk 0:02:16.8]} 18... Bc4 {[%clk 0:02:13.6]} 19. Re1
{[%clk 0:02:14.4]} 19... Qb6 {[%clk 0:02:10.6]} 20. b3 {[%clk 0:02:10.9]} 20...
Be6 {[%clk 0:02:03.1]} 21. Na4 {[%clk 0:02:03]} 21... Qd6 {[%clk 0:01:48.9]} 22.
Qd2 {[%clk 0:01:55.7]} 22... b6 {[%clk 0:01:43.6]} 23. Rxc8 {[%clk 0:01:50.5]}
23... Rxc8 {[%clk 0:01:43]} 24. Rc1 {[%clk 0:01:50.1]} 24... Rd8 {[%clk
0:01:20.7]} 25. Nc3 {[%clk 0:01:49.4]} 25... Bd5 {[%clk 0:01:18.8]} 26. Qe2
{[%clk 0:01:40.9]} 26... Bb7 {[%clk 0:01:07.2]} 27. Nb5 {[%clk 0:01:35.8]} 27...
Qb8 {[%clk 0:01:03.2]} 28. Nc3 {[%clk 0:01:18.7]} 28... e5 {[%clk 0:00:59.9]}
29. Rf1 {[%clk 0:01:01.6]} 29... exd4 {[%clk 0:00:55.3]} 30. Nxd4 {[%clk
0:00:56.8]} 30... Rxd4 {[%clk 0:00:44.2]} 31. exd4 {[%clk 0:00:54.7]} 31...
Bxd4+ {[%clk 0:00:44.7]} 32. Kh1 {[%clk 0:00:52.7]} 32... Bxc3 {[%clk 0:00:45]}
33. Qc4 {[%clk 0:00:49.2]} 33... Bg7 {[%clk 0:00:20.7]} 34. Qxf7+ {[%clk
0:00:48.7]} 34... Kh8 {[%clk 0:00:20.9]} 35. Re1 {[%clk 0:00:41.7]} 35... Bc6
{[%clk 0:00:20.9]} 36. Re7 {[%clk 0:00:32.4]} 36... Qg8 {[%clk 0:00:18.3]} 37.
Qf4 {[%clk 0:00:21.9]} 37... Qd8 {[%clk 0:00:15.9]} 38. Rxa7 {[%clk 0:00:17.7]}
38... h6 {[%clk 0:00:10.9]} 39. Qc7 {[%clk 0:00:07.8]} 39... Qd1+ {[%clk
0:00:07.5]} 40. Kh2 {[%clk 0:00:08.1]} 40... Qd4 {[%clk 0:00:05.9]} 41. Qxc6
{[%clk 0:00:03.3]} 41... Be5+ {[%clk 0:00:06.4]} 42. Kh1 {[%clk 0:00:03.5]}
42... Qd1# {[%clk 0:00:06.4]} 0-1

[Event "*** SCC Grand Prix: Titled Tuesday Blitz"]
[Site "Chess.com"]
[Date "2020.07.07"]
[Round "3"]
[White "floplover"]
[Black "binbin239"]
[Result "1-0"]
[WhiteElo "2302"]
[BlackElo "2501"]
[TimeControl "180+1"]
[EndTime "10:29:29 PDT"]
[Termination "floplover won by resignation"]

1. d4 {[%clk 0:03:00.9]} 1... Nf6 {[%clk 0:02:59.7]} 2. c4 {[%clk 0:03:01]} 2...
g6 {[%clk 0:02:59.9]} 3. Nc3 {[%clk 0:03:01.4]} 3... d5 {[%clk 0:03:00]} 4. cxd5
{[%clk 0:03:00]} 4... Nxd5 {[%clk 0:03:00.5]} 5. e4 {[%clk 0:03:00.7]} 5... Nxc3
{[%clk 0:03:00.2]} 6. bxc3 {[%clk 0:03:01.6]} 6... Bg7 {[%clk 0:03:00.6]} 7. Be3
{[%clk 0:03:02.1]} 7... c5 {[%clk 0:03:00.5]} 8. Rc1 {[%clk 0:03:02]} 8... O-O
{[%clk 0:02:59.8]} 9. Nf3 {[%clk 0:03:00.9]} 9... Qa5 {[%clk 0:02:53.3]} 10. Qd2
{[%clk 0:03:00.8]} 10... Bg4 {[%clk 0:02:47.4]} 11. Be2 {[%clk 0:02:56.9]} 11...
Nc6 {[%clk 0:02:46.4]} 12. d5 {[%clk 0:02:54.3]} 12... Bxf3 {[%clk 0:02:44.7]}
13. gxf3 {[%clk 0:02:50.3]} 13... Rad8 {[%clk 0:02:40.5]} 14. h4 {[%clk
0:02:13.2]} 14... e6 {[%clk 0:02:17.2]} 15. h5 {[%clk 0:02:06.9]} 15... exd5
{[%clk 0:02:17]} 16. exd5 {[%clk 0:02:07.5]} 16... c4 {[%clk 0:02:09.6]} 17.
Bxc4 {[%clk 0:01:54.2]} 17... Ne5 {[%clk 0:02:09.3]} 18. Be2 {[%clk 0:01:47.5]}
18... Rxd5 {[%clk 0:02:08.5]} 19. Bd4 {[%clk 0:01:39.3]} 19... Re8 {[%clk
0:01:58.8]} 20. Kf1 {[%clk 0:01:39.1]} 20... Nc6 {[%clk 0:01:46.2]} 21. hxg6
{[%clk 0:01:06.1]} 21... Rxd4 {[%clk 0:01:43.1]} 22. gxf7+ {[%clk 0:00:39.4]}
22... Kxf7 {[%clk 0:01:42.8]} 23. Qc2 {[%clk 0:00:39.6]} 23... Rxe2 {[%clk
0:01:03.3]} 24. Qxe2 {[%clk 0:00:33.8]} 24... Rd5 {[%clk 0:00:43.1]} 25. Re1
{[%clk 0:00:25.2]} 25... Qa6 {[%clk 0:00:34.1]} 26. c4 {[%clk 0:00:22.5]} 26...
Re5 {[%clk 0:00:32.3]} 27. Qd3 {[%clk 0:00:16.1]} 27... Rxe1+ {[%clk 0:00:31.1]}
28. Kxe1 {[%clk 0:00:17]} 28... Qa5+ {[%clk 0:00:31.4]} 29. Kf1 {[%clk
0:00:16.8]} 29... Ne5 {[%clk 0:00:29.9]} 30. Qf5+ {[%clk 0:00:16.4]} 30... Ke7
{[%clk 0:00:27.5]} 31. Rxh7 {[%clk 0:00:16.5]} 31... Qc3 {[%clk 0:00:19.8]} 32.
Rxg7+ {[%clk 0:00:16.5]} 32... Kd6 {[%clk 0:00:20]} 33. Qf6+ {[%clk 0:00:12.9]}
33... Kc5 {[%clk 0:00:20.2]} 34. Rc7+ {[%clk 0:00:12]} 34... Kb4 {[%clk
0:00:20.1]} 35. Rxb7+ {[%clk 0:00:12.3]} 35... Ka3 {[%clk 0:00:19.8]} 36. Rxa7+
{[%clk 0:00:11.8]} 36... Kb2 {[%clk 0:00:19.8]} 37. Qb6+ {[%clk 0:00:10.1]}
37... Kc1 {[%clk 0:00:19.2]} 38. Qe3+ {[%clk 0:00:09.3]} 38... Qxe3 {[%clk
0:00:18.5]} 39. fxe3 {[%clk 0:00:10.2]} 39... Nxc4 {[%clk 0:00:18.9]} 40. Kf2
{[%clk 0:00:09.5]} 40... Nb2 {[%clk 0:00:18.4]} 41. Rc7+ {[%clk 0:00:09.4]}
41... Kb1 {[%clk 0:00:17.6]} 42. Rb7 {[%clk 0:00:09.5]} 42... Kxa2 {[%clk
0:00:16.9]} 43. Rxb2+ {[%clk 0:00:10.4]} 43... Kxb2 {[%clk 0:00:17.7]} 44. f4
{[%clk 0:00:10.4]} 44... Kc3 {[%clk 0:00:18.6]} 45. f5 {[%clk 0:00:11]} 45...
Kc4 {[%clk 0:00:19.1]} 46. f6 {[%clk 0:00:11.9]} 46... Kd5 {[%clk 0:00:20]} 47.
f7 {[%clk 0:00:12.8]} 47... Ke6 {[%clk 0:00:20.9]} 48. f8=Q {[%clk 0:00:10.8]}
1-0

[Event "*** SCC Grand Prix: Titled Tuesday Blitz"]
[Site "Chess.com"]
[Date "2020.07.07"]
[Round "3"]
[White "GelmanAlexander"]
[Black "Kaua18"]
[Result "1-0"]
[WhiteElo "2543"]
[BlackElo "2206"]
[TimeControl "180+1"]
[EndTime "10:29:29 PDT"]
[Termination "GelmanAlexander won by resignation"]

1. c4 {[%clk 0:03:00.9]} 1... c5 {[%clk 0:03:00.1]} 2. Nf3 {[%clk 0:03:01]} 2...
Nc6 {[%clk 0:03:00.5]} 3. e3 {[%clk 0:03:01.3]} 3... e5 {[%clk 0:02:59.6]} 4. d3
{[%clk 0:03:01.2]} 4... Nf6 {[%clk 0:02:59]} 5. a3 {[%clk 0:03:01.7]} 5... d5
{[%clk 0:02:58.2]} 6. cxd5 {[%clk 0:03:02.3]} 6... Nxd5 {[%clk 0:02:59.1]} 7. b3
{[%clk 0:03:02.7]} 7... Be7 {[%clk 0:02:58.7]} 8. Bb2 {[%clk 0:03:03.3]} 8... f6
{[%clk 0:02:57.5]} 9. Nbd2 {[%clk 0:03:03.4]} 9... O-O {[%clk 0:02:56.8]} 10.
Rc1 {[%clk 0:03:03.5]} 10... Be6 {[%clk 0:02:56.2]} 11. Rg1 {[%clk 0:03:04]}
11... b6 {[%clk 0:02:54]} 12. g4 {[%clk 0:03:04.2]} 12... Nc7 {[%clk 0:02:53.2]}
13. h4 {[%clk 0:02:55.9]} 13... Qd7 {[%clk 0:02:41.4]} 14. g5 {[%clk 0:02:56.1]}
14... Rad8 {[%clk 0:02:40]} 15. gxf6 {[%clk 0:02:52.4]} 15... Bxf6 {[%clk
0:02:40.9]} 16. Ne4 {[%clk 0:02:48.7]} 16... Bg4 {[%clk 0:02:10.6]} 17. Be2
{[%clk 0:02:28.9]} 17... Nd5 {[%clk 0:01:59.5]} 18. Nfg5 {[%clk 0:01:48.7]}
18... Bxe2 {[%clk 0:01:48]} 19. Qxe2 {[%clk 0:01:49.6]} 19... h6 {[%clk
0:01:46.8]} 20. Qh5 {[%clk 0:01:33.8]} 20... Qf5 {[%clk 0:01:37.8]} 21. Rd1
{[%clk 0:01:06.4]} 21... Be7 {[%clk 0:01:13.1]} 22. Rd2 {[%clk 0:00:56.8]} 22...
Nf6 {[%clk 0:01:10.2]} 23. Nxf6+ {[%clk 0:00:53.7]} 23... Bxf6 {[%clk
0:01:11.1]} 24. e4 {[%clk 0:00:46.6]} 24... Qd7 {[%clk 0:00:54.6]} 25. Nf3
{[%clk 0:00:40.7]} 25... Kh8 {[%clk 0:00:39.3]} 26. Nh2 {[%clk 0:00:31.1]} 26...
Na5 {[%clk 0:00:26.6]} 27. Ng4 {[%clk 0:00:30.6]} 27... Nxb3 {[%clk 0:00:20]}
28. Nxe5 {[%clk 0:00:27.1]} 28... Qe8 {[%clk 0:00:08.9]} 29. Ng6+ {[%clk
0:00:24.5]} 29... Kg8 {[%clk 0:00:09.3]} 30. Bxf6 {[%clk 0:00:20.3]} 30... Rxf6
{[%clk 0:00:09.2]} 31. Rd1 {[%clk 0:00:19.9]} 31... Qf7 {[%clk 0:00:04.2]} 32.
Rg2 {[%clk 0:00:17.9]} 32... Nd4 {[%clk 0:00:02.3]} 33. Qg4 {[%clk 0:00:15.1]}
33... Nf3+ {[%clk 0:00:02.4]} 34. Kf1 {[%clk 0:00:15.3]} 34... Re8 {[%clk
0:00:01.4]} 35. h5 {[%clk 0:00:15.1]} 35... Ng5 {[%clk 0:00:01.5]} 36. Nh4
{[%clk 0:00:14.3]} 36... Rfe6 {[%clk 0:00:01.7]} 37. Nf5 {[%clk 0:00:14.6]}
37... Rf6 {[%clk 0:00:02.4]} 38. f4 {[%clk 0:00:14.4]} 38... Rf8 {[%clk
0:00:03]} 39. fxg5 {[%clk 0:00:14.7]} 39... Rxf5+ {[%clk 0:00:03.6]} 40. exf5
{[%clk 0:00:14.8]} 40... Qd5 {[%clk 0:00:03.5]} 41. gxh6 {[%clk 0:00:14.4]}
41... Rxf5+ {[%clk 0:00:03.5]} 42. Kg1 {[%clk 0:00:14.9]} 42... Qd4+ {[%clk
0:00:03.5]} 43. Qxd4 {[%clk 0:00:14.8]} 43... cxd4 {[%clk 0:00:04.4]} 44. Rxg7+
{[%clk 0:00:15.1]} 44... Kh8 {[%clk 0:00:04.9]} 45. Rc1 {[%clk 0:00:15.5]} 45...
Rf8 {[%clk 0:00:03.7]} 46. Rcc7 {[%clk 0:00:15.5]} 1-0

[Event "*** SCC Grand Prix: Titled Tuesday Blitz"]
[Site "Chess.com"]
[Date "2020.07.07"]
[Round "3"]
[White "blitzking1729"]
[Black "Ati1517"]
[Result "1-0"]
[WhiteElo "2560"]
[BlackElo "2368"]
[TimeControl "180+1"]
[EndTime "10:29:30 PDT"]
[Termination "blitzking1729 won by resignation"]

1. c4 {[%clk 0:03:00.9]} 1... e6 {[%clk 0:02:56.2]} 2. Nc3 {[%clk 0:03:00.6]}
2... d5 {[%clk 0:02:52.6]} 3. cxd5 {[%clk 0:03:00.4]} 3... exd5 {[%clk
0:02:53.5]} 4. d4 {[%clk 0:03:01.3]} 4... c6 {[%clk 0:02:51.8]} 5. Nf3 {[%clk
0:02:56.4]} 5... Nf6 {[%clk 0:02:51]} 6. Bg5 {[%clk 0:02:54.8]} 6... Be7 {[%clk
0:02:48.3]} 7. e3 {[%clk 0:02:54.6]} 7... O-O {[%clk 0:02:48.1]} 8. Bd3 {[%clk
0:02:54.4]} 8... Nbd7 {[%clk 0:02:48.1]} 9. O-O {[%clk 0:02:54.1]} 9... Re8
{[%clk 0:02:47.2]} 10. Qc2 {[%clk 0:02:53.8]} 10... h6 {[%clk 0:02:39.2]} 11.
Bh4 {[%clk 0:02:53.2]} 11... Ne4 {[%clk 0:02:38]} 12. Bxe4 {[%clk 0:02:38.8]}
12... dxe4 {[%clk 0:02:17.8]} 13. Qxe4 {[%clk 0:02:37]} 13... Bxh4 {[%clk
0:01:59.6]} 14. Qxh4 {[%clk 0:02:34.8]} 14... Qb6 {[%clk 0:01:58.7]} 15. Rab1
{[%clk 0:02:33.1]} 15... Nf6 {[%clk 0:01:56]} 16. b3 {[%clk 0:02:30.1]} 16...
Bf5 {[%clk 0:01:52.8]} 17. Rbc1 {[%clk 0:02:29.9]} 17... Ne4 {[%clk 0:01:39]}
18. Ne5 {[%clk 0:02:20.1]} 18... Nxc3 {[%clk 0:01:24.5]} 19. Rxc3 {[%clk
0:02:19]} 19... Qa5 {[%clk 0:01:15.4]} 20. Rc5 {[%clk 0:02:11.4]} 20... Qxa2
{[%clk 0:01:09.5]} 21. Nxf7 {[%clk 0:02:09.6]} 21... Kxf7 {[%clk 0:00:55.9]} 22.
Rxf5+ {[%clk 0:02:08.3]} 22... Kg8 {[%clk 0:00:56.4]} 23. b4 {[%clk 0:02:04.6]}
23... Qc4 {[%clk 0:00:46.3]} 24. b5 {[%clk 0:01:42.2]} 24... cxb5 {[%clk
0:00:41.9]} 25. Rc5 {[%clk 0:01:42.1]} 25... Qd3 {[%clk 0:00:37.8]} 26. Qg4
{[%clk 0:01:31]} 26... Re7 {[%clk 0:00:33.3]} 27. Rfc1 {[%clk 0:01:27.5]} 27...
Rae8 {[%clk 0:00:29.3]} 28. h4 {[%clk 0:01:19]} 28... b4 {[%clk 0:00:28.9]} 29.
Rc8 {[%clk 0:01:16.9]} 29... b3 {[%clk 0:00:25.8]} 30. Qh5 {[%clk 0:01:00.8]}
30... Rxc8 {[%clk 0:00:23.2]} 31. Rxc8+ {[%clk 0:00:59.5]} 31... Kh7 {[%clk
0:00:23.8]} 32. Qd5 {[%clk 0:00:52]} 32... b2 {[%clk 0:00:16.9]} 33. Qg8+ {[%clk
0:00:37.6]} 33... Kg6 {[%clk 0:00:16.8]} 34. h5+ {[%clk 0:00:28.2]} 34... Kxh5
{[%clk 0:00:16.4]} 35. Qd5+ {[%clk 0:00:23.2]} 35... g5 {[%clk 0:00:15.5]} 36.
Re8 {[%clk 0:00:16.4]} 36... Rxe8 {[%clk 0:00:12.3]} 37. Qf7+ {[%clk 0:00:15]}
37... Qg6 {[%clk 0:00:10.7]} 38. g4+ {[%clk 0:00:15]} 38... Kxg4 {[%clk
0:00:09.5]} 39. Qxg6 {[%clk 0:00:13.8]} 39... Kf3 {[%clk 0:00:07.2]} 40. Qf5+
{[%clk 0:00:11.9]} 40... Ke2 {[%clk 0:00:06.5]} 41. Qc2+ {[%clk 0:00:12.4]} 1-0

[Event "*** SCC Grand Prix: Titled Tuesday Blitz"]
[Site "Chess.com"]
[Date "2020.07.07"]
[Round "3"]
[White "ljuks68"]
[Black "seorobert1971"]
[Result "0-1"]
[WhiteElo "2427"]
[BlackElo "2694"]
[TimeControl "180+1"]
[EndTime "10:29:31 PDT"]
[Termination "seorobert1971 won on time"]

1. e4 {[%clk 0:02:58.5]} 1... c6 {[%clk 0:02:59.5]} 2. d4 {[%clk 0:02:57.9]}
2... d5 {[%clk 0:02:59.7]} 3. e5 {[%clk 0:02:58.1]} 3... Bf5 {[%clk 0:02:59.3]}
4. Nd2 {[%clk 0:02:58.2]} 4... e6 {[%clk 0:02:58.6]} 5. Nb3 {[%clk 0:02:58.5]}
5... Nd7 {[%clk 0:02:52.5]} 6. Nf3 {[%clk 0:02:58.8]} 6... Ne7 {[%clk
0:02:50.7]} 7. Be2 {[%clk 0:02:57.7]} 7... Bg6 {[%clk 0:02:49.7]} 8. O-O {[%clk
0:02:56.7]} 8... Nf5 {[%clk 0:02:49.6]} 9. a4 {[%clk 0:02:56.3]} 9... a5 {[%clk
0:02:48.7]} 10. Bd2 {[%clk 0:02:54.9]} 10... Be7 {[%clk 0:02:47.8]} 11. Qe1
{[%clk 0:02:52.1]} 11... b6 {[%clk 0:02:46.6]} 12. Rc1 {[%clk 0:02:49.6]} 12...
O-O {[%clk 0:02:37.9]} 13. c4 {[%clk 0:02:48]} 13... c5 {[%clk 0:02:26.7]} 14.
cxd5 {[%clk 0:02:39.7]} 14... exd5 {[%clk 0:02:26.5]} 15. dxc5 {[%clk
0:02:16.9]} 15... Nxc5 {[%clk 0:02:23.2]} 16. Nxc5 {[%clk 0:01:52.5]} 16... Bxc5
{[%clk 0:02:24.1]} 17. g4 {[%clk 0:01:18.3]} 17... Nh4 {[%clk 0:02:14.9]} 18.
Kh1 {[%clk 0:01:03.6]} 18... Be4 {[%clk 0:02:10.3]} 19. Qd1 {[%clk 0:01:03.2]}
19... f6 {[%clk 0:01:50.4]} 20. e6 {[%clk 0:00:56.7]} 20... Qe7 {[%clk
0:01:43.6]} 21. Kg1 {[%clk 0:00:56.4]} 21... Nxf3+ {[%clk 0:01:41.7]} 22. Bxf3
{[%clk 0:00:56.4]} 22... Qxe6 {[%clk 0:01:42]} 23. Re1 {[%clk 0:00:54.8]} 23...
f5 {[%clk 0:01:37.1]} 24. g5 {[%clk 0:00:52.6]} 24... Kh8 {[%clk 0:01:31.8]} 25.
Bf4 {[%clk 0:00:51.5]} 25... Rad8 {[%clk 0:01:26.6]} 26. Be2 {[%clk 0:00:28.2]}
26... d4 {[%clk 0:01:21]} 27. Bc4 {[%clk 0:00:19]} 27... Qc6 {[%clk 0:01:18.9]}
28. Bb5 {[%clk 0:00:16.4]} 28... Qb7 {[%clk 0:01:18.1]} 29. Qh5 {[%clk
0:00:14.8]} 29... Bf3 {[%clk 0:00:51.3]} 30. Qh4 {[%clk 0:00:12]} 30... Qf7
{[%clk 0:00:42.1]} 31. Bd3 {[%clk 0:00:08.3]} 31... Ba8 {[%clk 0:00:38.8]} 32.
Qh3 {[%clk 0:00:06.2]} 32... Qd5 {[%clk 0:00:33.8]} 33. f3 {[%clk 0:00:05.7]}
33... Qxf3 {[%clk 0:00:32.3]} 34. Qxf3 {[%clk 0:00:05.6]} 34... Bxf3 {[%clk
0:00:33.2]} 35. Re6 {[%clk 0:00:05.6]} 35... Kg8 {[%clk 0:00:25.2]} 36. Bc4
{[%clk 0:00:04.6]} 36... Bd5 {[%clk 0:00:17.7]} 37. Bxd5 {[%clk 0:00:04.2]}
37... Rxd5 {[%clk 0:00:18.6]} 38. Rd1 {[%clk 0:00:04.3]} 38... d3+ {[%clk
0:00:18.5]} 39. Kf1 {[%clk 0:00:02.8]} 39... Rfd8 {[%clk 0:00:17.8]} 40. Bd2
{[%clk 0:00:02.5]} 40... Rd4 {[%clk 0:00:15.8]} 41. Rde1 {[%clk 0:00:02.3]}
41... Kf7 {[%clk 0:00:15.1]} 42. Rc6 {[%clk 0:00:01.6]} 42... Rxa4 {[%clk
0:00:14.6]} 43. Rc7+ {[%clk 0:00:01.1]} 43... Kg6 {[%clk 0:00:14.5]} 0-1